lending/lending_fUSD_20250808
["ID","MTS","AMOUNT","RATE_DAILY","PERIOD"]
[378012049,1754667111101,-1000.0,0.00018398,2]
[378012050,1754667111125,-590.64000008,0.00018399,2]
[378012051,1754667111150,-1184.73,0.00018497,2]
[378012052,1754667111173,-400.0,0.00018497,2]
[378012053,1754667111195,-400.0,0.00018497,2]
[378012054,1754667111216,-1106.65,0.00018497,2]
[378012055,1754667111238,-3614.09,0.00018497,2]
[378012056,1754667111259,-400.0,0.00018497,2]
[378012057,1754667111280,-400.0,0.00018497,2]
[378012058,1754667111302,-1567.43,0.00018497,2]
[378012059,1754667111326,-400.0,0.00018497,2]
[378012060,1754667111348,-875.27,0.00018497,2]
[378012061,1754667111369,-152.66589228,0.00018497,2]
[378012062,1754667111391,-591.42,0.00018497,2]
[378012063,1754667111412,-400.0,0.00018497,2]
[378012064,1754667111434,-1516.72,0.00018497,2]
[378012065,1754667111455,-1280.66,0.00018497,2]
[378012066,1754667111477,-821.28,0.00018497,2]
[378012067,1754667111499,-402.39,0.00018497,2]
[378012068,1754667111521,-1164.84,0.00018497,2]
[378012069,1754667112102,-442.5,0.00018497,2]
[378012070,1754667112164,-400.0,0.00018497,2]
[378012071,1754667112199,-1121.38,0.00018497,2]
[378012072,1754667112228,-400.0,0.00018497,2]
[378012073,1754667112249,-744.31,0.00018497,2]
[378012074,1754667112274,-400.0,0.00018497,2]
[378012075,1754667112298,-1291.75,0.00018497,2]
[378012076,1754667112320,-400.0,0.00018497,2]
[378012077,1754667112341,-556.98,0.00018497,2]
[378012078,1754667112362,-3852.09,0.00018497,2]
[378012079,1754667112383,-400.0,0.00018497,2]
[378012080,1754667112404,-400.0,0.00018497,2]
[378012081,1754667112424,-400.0,0.00018497,2]
[378012082,1754667112444,-400.0,0.00018497,2]
[378012083,1754667112466,-4106.54,0.00018497,2]
[378012084,1754667112487,-400.0,0.00018497,2]
[378012085,1754667112509,-1021.65,0.00018497,2]
[378012086,1754667112529,-400.0,0.00018498,2]
[378012087,1754667112550,-400.0,0.00018498,2]
[378012088,1754667112572,-400.0,0.00018498,2]
[378012089,1754667112592,-400.0,0.00018498,2]
[378012090,1754667112615,-400.0,0.00018498,2]
[378012091,1754667112636,-1673.4,0.00018498,2]
[378012092,1754667112657,-1570.14,0.00018498,2]
[378012093,1754667112678,-508.18,0.00018498,2]
[378012094,1754667112700,-932.24,0.00018498,2]
[378012095,1754667112722,-400.0,0.00018498,2]
[378012096,1754667112744,-583.78,0.00018498,2]
[378012097,1754667112763,-1000.0,0.00018498,2]
[378012098,1754667112786,-3346.37,0.00018498,2]
[378012099,1754667112811,-446.29,0.00018498,2]
[378012100,1754667112834,-400.0,0.00018498,2]
[378012101,1754667112857,-400.0,0.00018498,2]
[378012102,1754667112880,-585.96,0.00018498,2]
[378012103,1754667112903,-1528.65,0.00018498,2]
[378012104,1754667112924,-400.0,0.00018498,2]
[378012105,1754667112945,-400.0,0.00018498,2]
[378012106,1754667112965,-3067.64,0.00018498,2]
[378012107,1754667112988,-763.66,0.00018498,2]
[378012108,1754667113009,-815.92,0.00018498,2]
[378012109,1754667113030,-400.0,0.00018498,2]
[378012110,1754667113054,-1726.27,0.00018498,2]
[378012111,1754667113078,-490.56,0.00018499,2]
[378012112,1754667113099,-400.0,0.00018499,2]
[378012113,1754667113125,-2882.63,0.00018499,2]
[378012114,1754667113147,-883.52,0.00018499,2]
[378012115,1754667113171,-4065.46,0.00018499,2]
[378012116,1754667113193,-400.0,0.00018499,2]
[378012117,1754667113216,-1100.0,0.000185,6]
[378012118,1754667113240,-2200.0,0.000186,6]
[378012119,1754667113261,-400.0,0.00018651,2]
[378012120,1754667113283,-400.0,0.00018651,2]
[378012121,1754667113308,-400.0,0.00018651,2]
[378012122,1754667113331,-401.35789659,0.00018651,2]
[378012123,1754667113354,-500.79670174,0.00018651,2]
[378012124,1754667113376,-400.0,0.00018651,2]
[378012125,1754667113397,-400.0,0.00018651,2]
[378012126,1754667113418,-400.0,0.00018651,2]
[378012127,1754667113439,-400.0,0.00018651,2]
[378012128,1754667113466,-400.0,0.00018651,2]
[378012129,1754667113488,-457.53,0.00018651,2]
[378012130,1754667113510,-400.0,0.00018651,2]
[378012131,1754667113532,-400.0,0.00018651,2]
[378012132,1754667113557,-401.77284647,0.00018651,2]
[378012133,1754667113580,-400.0,0.00018651,2]
[378012134,1754667113602,-400.0,0.00018651,2]
[378012135,1754667113626,-358.9103013,0.00018651,2]
[378012136,1754667113648,-268.5830697,0.00018651,2]
[378012137,1754667113669,-400.0,0.00018651,2]
[378012138,1754667113690,-400.0,0.00018651,2]
[378012139,1754667113711,-401.14169031,0.00018651,2]
[378012140,1754667113733,-405.33,0.00018651,2]
[378012141,1754667113755,-400.0,0.00018651,2]
[378012142,1754667113784,-400.0,0.00018651,2]
[378012143,1754667113809,-400.0,0.00018651,2]
[378012144,1754667113833,-400.0,0.00018651,2]
[378012145,1754667113857,-400.0,0.00018651,2]
[378012146,1754667113879,-400.0,0.00018651,2]
[378012147,1754667113901,-400.0,0.00018651,2]
[378012148,1754667113923,-400.0,0.00018651,2]
[378012149,1754667113944,-400.0,0.00018651,2]
[378012150,1754667113965,-400.0,0.00018651,2]
[378012151,1754667113986,-400.0,0.00018651,2]
[378012152,1754667114007,-430.88,0.00018651,2]
[378012153,1754667114029,-269.19382662,0.00018651,2]
[378012154,1754667114052,-400.0,0.00018651,2]
[378012155,1754667114077,-400.0,0.00018651,2]
[378012156,1754667114099,-451.12,0.00018651,2]
[378012157,1754667114121,-522.33,0.00018651,2]
[378012158,1754667114145,-400.0,0.00018651,2]
[378012159,1754667114166,-400.0,0.00018651,2]
[378012160,1754667114189,-300.0,0.00018651,2]
[378012161,1754667114210,-400.0,0.00018651,2]
[378012162,1754667114233,-3300.0,0.000187,6]
[378012163,1754667114255,-585.96,0.00018753,2]
[378012164,1754667114278,-1184.73,0.00018771,2]
[378012165,1754667114302,-400.0,0.00018771,2]
[378012166,1754667114325,-1106.65,0.00018771,2]
[378012167,1754667114347,-3614.09,0.00018771,2]
[378012168,1754667114369,-400.0,0.00018771,2]
[378012169,1754667114391,-1567.43,0.00018771,2]
[378012170,1754667114413,-400.0,0.00018771,2]
[378012171,1754667114447,-875.27,0.00018771,2]
[378012172,1754667114475,-591.42,0.00018771,2]
[378012173,1754667114498,-400.0,0.00018771,2]
[378012174,1754667114520,-1516.72,0.00018771,2]
[378012175,1754667114543,-821.28,0.00018771,2]
[378012176,1754667114565,-1280.66,0.00018771,2]
[378012177,1754667114589,-402.39,0.00018771,2]
[378012178,1754667114612,-1164.84,0.00018771,2]
[378012179,1754667114634,-442.5,0.00018771,2]
[378012180,1754667114657,-400.0,0.00018771,2]
[378012181,1754667114678,-744.31,0.00018771,2]
[378012182,1754667114700,-400.0,0.00018771,2]
[378012183,1754667114722,-1291.75,0.00018771,2]
[378012184,1754667114743,-400.0,0.00018771,2]
[378012185,1754667114767,-1121.38,0.00018771,2]
[378012186,1754667114791,-400.0,0.00018771,2]
[378012187,1754667114815,-3852.09,0.00018771,2]
[378012188,1754667114837,-400.0,0.00018771,2]
[378012189,1754667114865,-556.98,0.00018771,2]
[378012190,1754667114889,-400.0,0.00018771,2]
[378012191,1754667114914,-400.0,0.00018771,2]
[378012192,1754667114938,-400.0,0.00018771,2]
[378012193,1754667114969,-4285.09,0.00018771,2]
[378012194,1754667114994,-272.88,0.00018772,2]
[378012195,1754667115019,-400.0,0.00018772,2]
[378012196,1754667115042,-400.0,0.00018772,2]
[378012197,1754667115069,-400.0,0.00018772,2]
[378012198,1754667115093,-1673.4,0.00018772,2]
[378012199,1754667115116,-1570.14,0.00018772,2]
[378012200,1754667115140,-932.24,0.00018772,2]
[378012201,1754667115163,-400.0,0.00018772,2]
[378012202,1754667115186,-508.18,0.00018772,2]
[378012203,1754667115209,-583.78,0.00018772,2]
[378012204,1754667115231,-1000.0,0.00018772,2]
[378012205,1754667115255,-3346.37,0.00018772,2]
[378012206,1754667115278,-446.29,0.00018772,2]
[378012207,1754667115301,-400.0,0.00018772,2]
[378012208,1754667115325,-400.0,0.00018772,2]
[378012209,1754667115349,-585.96,0.00018772,2]
[378012210,1754667115372,-1528.65,0.00018772,2]
[378012211,1754667115396,-400.0,0.00018772,2]
[378012212,1754667115420,-400.0,0.00018772,2]
[378012213,1754667115445,-3067.64,0.00018772,2]
[378012214,1754667115470,-815.92,0.00018772,2]
[378012215,1754667115497,-763.66,0.00018772,2]
[378012216,1754667115522,-170.16443554,0.00018772,2]
[378012217,1754667115545,-1726.27,0.00018772,2]
[378012218,1754667115570,-400.0,0.00018773,2]
[378012219,1754667115593,-2882.63,0.00018773,2]
[378012220,1754667115616,-883.52,0.00018773,2]
[378012221,1754667115640,-4065.46,0.00018773,2]
[378012222,1754667115662,-400.0,0.00018773,2]
[378012223,1754667115683,-170.22142613,0.0001878,2]
[378012224,1754667115705,-211.62674257,0.000188,3]
[378012225,1754667115728,-4400.0,0.000188,6]
[378012226,1754667115750,-650.20878153,0.0001881,2]
[378012227,1754667116051,-5500.0,0.000189,6]
[378012228,1754667116078,-400.0,0.00018925,2]
[378012229,1754667116101,-400.0,0.00018925,2]
[378012230,1754667116125,-400.0,0.00018925,2]
[378012231,1754667116151,-400.0,0.00018925,2]
[378012232,1754667116173,-400.0,0.00018925,2]
[378012233,1754667116195,-150.81,0.00018925,2]
[378012234,1754667116217,-405.33,0.00018925,2]
[378012235,1754667116239,-400.0,0.00018925,2]
[378012236,1754667116263,-203.34,0.00018925,2]
[378012237,1754667116285,-400.0,0.00018925,2]
[378012238,1754667116307,-400.0,0.00018925,2]
[378012239,1754667116329,-158.33,0.00018925,2]
[378012240,1754667116351,-430.88,0.00018925,2]
[378012241,1754667116375,-400.0,0.00018925,2]
[378012242,1754667116395,-451.12,0.00018925,2]
[378012243,1754667116416,-400.0,0.00018925,2]
[378012244,1754667116437,-400.0,0.00018925,2]
[378012245,1754667116458,-300.0,0.00018925,2]
[378012246,1754667116479,-400.0,0.00018925,2]
[378012247,1754667116500,-1118.0,0.00018964,2]
[378012248,1754667116521,-1118.0,0.00018964,2]
[378012249,1754667116543,-1118.0,0.00018964,2]
[378012250,1754667116564,-1118.0,0.00018964,2]
[378012251,1754667116586,-1118.0,0.00018964,2]
[378012252,1754667116607,-1118.0,0.00018964,2]
[378012253,1754667116628,-1118.0,0.00018964,2]
[378012254,1754667116649,-1118.0,0.00018964,2]
[378012255,1754667116669,-1118.0,0.00018964,2]
[378012256,1754667116690,-1118.0,0.00018964,2]
[378012257,1754667116712,-1118.0,0.00018964,2]
[378012258,1754667116734,-1118.0,0.00018964,2]
[378012259,1754667116756,-1118.0,0.00018964,2]
[378012260,1754667116777,-1118.0,0.00018964,2]
[378012261,1754667116798,-1118.0,0.00018964,2]
[378012262,1754667116819,-1118.0,0.00018964,2]
[378012263,1754667116841,-1118.0,0.00018964,2]
[378012264,1754667116865,-1118.0,0.00018964,2]
[378012265,1754667116887,-1118.0,0.00018964,2]
[378012266,1754667116909,-1118.0,0.00018964,2]
[378012267,1754667116930,-1118.0,0.00018964,2]
[378012268,1754667116951,-1118.0,0.00018964,2]
[378012269,1754667116973,-1118.0,0.00018964,2]
[378012270,1754667116994,-500.0,0.00018973,2]
[378012271,1754667117014,-500.0,0.00018973,2]
[378012272,1754667117035,-500.0,0.00018973,2]
[378012273,1754667117060,-500.0,0.00018973,2]
[378012274,1754667117083,-503.01147169,0.00018973,2]
[378012275,1754667117104,-249.0,0.00018974,2]
[378012276,1754667117126,-21445.0,0.00018997,2]
[378012277,1754667117148,-810.0,0.00018997,2]
[378012278,1754667117171,-400.0,0.00018999,2]
[378012279,1754667117194,-1253.34,0.00018999,2]
[378012280,1754667117216,-1739.26,0.00018999,2]
[378012281,1754667117238,-3296.5,0.00018999,2]
[378012282,1754667117261,-254871.36331745,0.00019,2]
[378012283,1754667159422,155.88,0.00017869,2]
[378012284,1754667163466,438.34,0.00017865,2]
[378012285,1754667186170,23900.0,0.00017789,2]
[378012286,1754667187891,200.0,0.00017789,2]
[378012287,1754667237087,175.0,0.00017729,7]
[378012288,1754667238254,500.0,0.00016986,2]
[378012289,1754667238627,500.0,0.00016986,2]
[378012290,1754667239615,250.0,0.00017729,2]
[378012291,1754667267676,150.0,0.000135,2]
[378012292,1754667267987,150.0,0.0001468,2]
[378012293,1754667268395,150.0,0.0001587,2]
[378012294,1754667268791,150.0,0.0001705,2]
[378012298,1754667285957,518.0,0.00017547,2]
[378012299,1754667290152,150.0,0.00017621,2]
[378012300,1754667371981,542.08,0.00027397,120]
[378012301,1754667385755,150.0,0.00017017,2]
[378012302,1754667386095,422.30002114,0.00017095,2]
[378012303,1754667386385,495.29014825,0.00017172,2]
[378012304,1754667386758,568.28027537,0.00017249,2]
[378012305,1754667387099,641.27040248,0.00017327,2]
[378012306,1754667387434,714.26052959,0.00017404,2]
[378012307,1754667387793,787.2506567,0.00017481,2]
[378012308,1754667388127,860.24078381,0.00017559,2]
[378012309,1754667388520,933.23091092,0.00017636,2]
[378012310,1754667389154,1079.21116514,0.00017791,2]
[378012311,1754667389410,1152.20129225,0.00017868,2]
[378012312,1754667389770,1225.19141937,0.00017945,2]
[378012313,1754667391352,1006.22103803,0.00017713,2]
[378012314,1754667441973,7640.05,0.00017445,2]
[378012315,1754667447516,2418.24133946,0.00018,2]
[378012316,1754667451139,1836.98,0.00017445,2]
[378012317,1754667461941,1119.37,0.00017454,2]
[378012318,1754667462180,1119.37,0.00017464,2]
[378012319,1754667462633,1119.37,0.00017473,2]
[378012320,1754667463121,1119.37,0.00017482,2]
[378012321,1754667463316,1119.37,0.00017491,2]
[378012322,1754667463547,1119.37,0.000175,2]
[378012323,1754667463763,1119.37,0.0001751,2]
[378012324,1754667463997,1119.37,0.00017519,2]
[378012325,1754667464218,1119.37,0.00017528,2]
[378012326,1754667464471,1119.37,0.00017537,2]
[378012327,1754667464707,1119.37,0.00017546,2]
[378012328,1754667464925,1119.37,0.00017555,2]
[378012329,1754667465134,1119.37,0.00017565,2]
[378012330,1754667465380,1119.37,0.00017574,2]
[378012331,1754667465624,1119.37,0.00017583,2]
[378012332,1754667465867,1119.37,0.00017592,2]
[378012333,1754667466078,1119.37,0.00017601,2]
[378012334,1754667466817,1119.37,0.0001761,2]
[378012335,1754667467062,1119.37,0.0001762,2]
[378012336,1754667467115,1119.37,0.00017629,2]
[378012337,1754667497627,666.0,0.00017416,3]
[378012341,1754667531058,1673.2,0.000174,2]
[378012344,1754667563675,150.0,0.00017372,2]
[378012345,1754667602445,165.43,0.00017369,2]
[378012346,1754667624861,952.08,0.00017355,2]
[378012347,1754667685523,11721.0,0.00030136,120]
[378012348,1754667693785,150.0,0.00017017,2]
[378012349,1754667694260,584.18047695,0.00017095,2]
[378012350,1754667694400,685.1499421,0.00017172,2]
[378012351,1754667694746,786.11940725,0.00017249,2]
[378012352,1754667695090,1593.87512847,0.00017868,2]
[378012353,1754667698007,988.05833756,0.00017404,2]
[378012354,1754667698536,1089.02780271,0.00017481,2]
[378012355,1754667698638,1189.99726786,0.00017559,2]
[378012356,1754667699939,1290.96673301,0.00017636,2]
[378012357,1754667700199,1391.93619816,0.00017713,2]
[378012358,1754667700566,1492.90566331,0.00017791,2]
[378012359,1754667700882,887.0888724,0.00017327,2]
[378012360,1754667701227,1694.84459362,0.00017945,2]
[378012364,1754667730666,165.7,0.00017319,2]
[378012365,1754667750782,203.75,0.00017311,2]
[378012366,1754667756431,1000.0,0.0001731,2]
[378012367,1754667775582,377.62,0.00015068,2]
[378012368,1754667775806,377.62,0.00016628,2]
[378012369,1754667789271,150.0,0.000135,2]
[378012370,1754667789996,150.0,0.0001468,2]
[378012371,1754667790402,150.0,0.0001587,2]
[378012372,1754667790807,150.0,0.0001705,2]
[378012375,1754667810910,305.87,0.00017306,2]
[378012376,1754667817801,1555.01,0.00017306,2]
[378012377,1754667840648,164.87978952,0.00017919,2]
[378012378,1754667880248,365.29,0.00017315,2]
[378012379,1754667894311,184.13,0.00013848,2]
[378012380,1754667906813,150.0,0.00017088,2]
[378012381,1754667908568,150.0,0.00017088,2]
[378012382,1754667909799,150.0,0.00017088,2]
[378012383,1754667911352,150.0,0.00017088,2]
[378012384,1754667911402,150.0,0.00017128,2]
[378012385,1754667911460,150.0,0.00017168,2]
[378012386,1754667911495,150.0,0.00017249,2]
[378012387,1754667911577,150.0,0.0001729,2]
[378012388,1754667911611,150.0,0.00017209,2]
[378012389,1754667911651,150.0,0.0001733,2]
[378012390,1754667911714,150.0,0.0001737,2]
[378012391,1754667911780,150.0,0.00017411,2]
[378012392,1754667911849,150.0,0.00017451,2]
[378012393,1754667911916,150.0,0.00017492,2]
[378012394,1754667911995,150.0,0.00017532,2]
[378012395,1754667912066,150.0,0.00017572,2]
[378012396,1754667912142,150.0,0.00017613,2]
[378012397,1754667912207,150.0,0.00017653,2]
[378012398,1754667912278,150.0,0.00017694,2]
[378012399,1754667912349,150.0,0.00017734,2]
[378012400,1754667912424,150.0,0.00017774,2]
[378012401,1754667912489,150.0,0.00017815,2]
[378012402,1754667912610,150.0,0.00017855,2]
[378012403,1754667912681,150.0,0.00017896,2]
[378012404,1754667912748,150.0,0.00017936,2]
[378012405,1754667912830,150.0,0.00017976,2]
[378012406,1754667917927,150.0,0.00017088,2]
[378012407,1754667918040,150.0,0.00017088,2]
[378012411,1754667927081,150.0,0.00017088,2]
[378012412,1754667937486,200.0,0.0001728,2]
[378012415,1754667955262,251.28,0.00017284,2]
[378012418,1754668007553,1140.19,0.00017293,2]
[378012419,1754668028177,400.0,0.000178,6]
[378012420,1754668030091,900.0,0.000179,6]
[378012421,1754668036365,1275.87,0.00017288,2]
[378012422,1754668039014,10000.0,0.00017288,2]
[378012423,1754668042843,1271.07,0.00017284,2]
[378012424,1754668063634,175.17219344,0.00018,2]
[378012425,1754668094776,167.78,0.00017807,2]
[378012426,1754668122617,17486.06,0.00017292,2]
[378012432,1754668166926,703.15,0.00017285,2]
[378012433,1754668186526,164.87978951,0.00017937,2]
[378012439,1754668231614,-150.0,0.00018017,2]
[378012440,1754668231624,-1000.0,0.00018017,4]
[378012441,1754668231634,-458.62825566,0.00018017,2]
[378012442,1754668231645,-664.06530526,0.00018017,2]
[378012443,1754668231659,-278.81126623,0.00018017,2]
[378012444,1754668231671,-1098.49517285,0.00018017,2]
[378012445,1754668231680,-250.0,0.00018017,2]
[378012446,1754668231690,-1568.8911285,0.00018029,2]
[378012447,1754668231702,-931.1088715,0.00018029,2]
[378012448,1754668231711,-150.0,0.00018037,2]
[378012449,1754668231721,-150.0,0.00018057,2]
[378012450,1754668231730,-52.45571372,0.00018098,2]
[378012451,1754668231741,-97.54428628,0.00018098,2]
[378012452,1754668231751,-155.48040169,0.00018129,2]
[378012453,1754668231775,-66.21650883,0.00018129,2]
[378012454,1754668231786,-150.0,0.00018138,2]
[378012455,1754668231795,-150.0,0.00018178,2]
[378012456,1754668231805,-365.29,0.00018181,2]
[378012457,1754668231815,-377.62,0.00018187,2]
[378012458,1754668231825,-300.0,0.00018196,2]
[378012459,1754668231834,-1232.74411488,0.00018197,2]
[378012460,1754668231847,-1838.79519397,0.00018197,2]
[378012461,1754668231856,-1200.0,0.000182,2]
[378012462,1754668231866,-518.0,0.00018201,2]
[378012463,1754668231875,-197.0518247,0.00018204,2]
[378012464,1754668231887,-70.40891833,0.00018204,2]
[378012465,1754668231897,-150.0,0.00018206,2]
[378012466,1754668231907,-850.0,0.00018218,2]
[378012467,1754668231916,-150.0,0.00018219,2]
[378012468,1754668231926,-183.917719,0.00018219,2]
[378012469,1754668231935,-401.19111454,0.00018219,2]
[378012470,1754668231945,-500.0,0.00018219,2]
[378012471,1754668231954,-600.0,0.00018219,2]
[378012472,1754668231963,-500.0,0.00018219,2]
[378012473,1754668231973,-160.0,0.00018219,2]
[378012474,1754668231983,-500.0,0.00018219,2]
[378012475,1754668231992,-500.0,0.00018219,2]
[378012476,1754668232002,-500.0,0.00018219,2]
[378012477,1754668232011,-500.0,0.00018219,2]
[378012478,1754668232021,-500.0,0.00018219,2]
[378012479,1754668232031,-500.0,0.00018219,2]
[378012480,1754668232041,-500.0,0.00018219,2]
[378012481,1754668232051,-500.0,0.00018219,2]
[378012482,1754668232060,-500.0,0.00018219,2]
[378012483,1754668232070,-500.0,0.00018219,2]
[378012484,1754668232079,-500.0,0.00018219,2]
[378012485,1754668232089,-500.0,0.00018219,2]
[378012486,1754668232098,-500.0,0.00018219,2]
[378012487,1754668232108,-512.74253208,0.00018219,2]
[378012488,1754668232117,-500.0,0.00018219,2]
[378012489,1754668232127,-354.18427022,0.00018219,2]
[378012490,1754668232159,-145.81572978,0.00018219,2]
[378012491,1754668232169,-500.0,0.00018219,2]
[378012492,1754668232180,-500.0,0.00018219,2]
[378012493,1754668232190,-500.0,0.00018219,2]
[378012494,1754668232199,-500.0,0.00018219,2]
[378012495,1754668232208,-23.08477122,0.00018219,2]
[378012496,1754668232219,-476.91522878,0.00018219,2]
[378012497,1754668232229,-500.0,0.00018219,2]
[378012498,1754668232238,-151.0,0.00018219,2]
[378012499,1754668232247,-500.0,0.00018219,2]
[378012500,1754668232256,-500.0,0.00018219,2]
[378012501,1754668232265,-500.0,0.00018219,2]
[378012502,1754668232275,-500.0,0.00018219,2]
[378012503,1754668232284,-361.57077122,0.00018219,2]
[378012504,1754668232299,-138.42922878,0.00018219,2]
[378012505,1754668232308,-500.0,0.00018219,2]
[378012506,1754668232318,-500.0,0.00018219,2]
[378012507,1754668232328,-361.57077122,0.00018219,2]
[378012508,1754668232342,-138.42922878,0.00018219,2]
[378012509,1754668232355,-500.0,0.00018219,2]
[378012510,1754668232366,-472.35077122,0.00018219,2]
[378012511,1754668232377,-27.64922878,0.00018219,2]
[378012512,1754668232386,-500.0,0.00018219,2]
[378012513,1754668232397,-500.0,0.00018219,2]
[378012514,1754668232406,-500.0,0.00018219,2]
[378012515,1754668232415,-200.0,0.00018219,2]
[378012516,1754668232425,-174.66207114,0.00018219,2]
[378012517,1754668232436,-95.38171202,0.00018219,2]
[378012518,1754668232445,-373.90267523,0.00018219,2]
[378012519,1754668232455,-500.0,0.00018219,2]
[378012520,1754668232464,-200.0,0.00018219,2]
[378012521,1754668232473,-500.0,0.00018219,2]
[378012522,1754668232483,-428.59505164,0.00018219,2]
[378012523,1754668232492,-150.0,0.0001823,2]
[378012524,1754668232501,-165.43,0.00018237,2]
[378012525,1754668232510,-150.0,0.00018239,2]
[378012526,1754668232519,-150.0,0.00018259,2]
[378012527,1754668232529,-792.27983315,0.00018297,2]
[378012528,1754668232538,-4611.66429239,0.00018298,2]
[378012529,1754668232548,-223.55078656,0.00018298,2]
[378012530,1754668232557,-186.41764163,0.00018298,2]
[378012531,1754668232566,-154.08,0.00018298,2]
[378012532,1754668232576,-1000.0,0.00018298,2]
[378012533,1754668232586,-1745.5026,0.00018298,2]
[378012534,1754668232595,-2500.0,0.00018298,2]
[378012535,1754668232604,-150.0,0.000183,2]
[378012536,1754668232614,-150.0,0.0001834,2]
[378012537,1754668232624,-500.0,0.0001836,2]
[378012538,1754668232634,-500.0,0.0001836,2]
[378012539,1754668232643,-500.0,0.0001836,2]
[378012540,1754668232652,-176.29780431,0.0001836,2]
[378012541,1754668232662,-461.68,0.00018361,2]
[378012542,1754668232671,-315.0,0.00018372,2]
[378012543,1754668232681,-150.0,0.0001838,2]
[378012544,1754668232690,-168.0,0.00018382,2]
[378012545,1754668232700,-150.0,0.00018384,2]
[378012546,1754668232709,-1836.69795558,0.00018389,2]
[378012547,1754668232718,-178.23298972,0.00018396,2]
[378012548,1754668232728,-644.91489156,0.00018396,2]
[378012549,1754668232738,-196.4931417,0.00018396,2]
[378012550,1754668232747,-153.76049516,0.00018396,2]
[378012551,1754668232757,-400.0,0.00018396,2]
[378012552,1754668232767,-400.0,0.00018396,2]
[378012553,1754668232776,-400.0,0.00018396,2]
[378012554,1754668232786,-400.0,0.00018396,2]
[378012555,1754668232796,-401.99550419,0.00018396,2]
[378012556,1754668232806,-1035.52,0.00018396,2]
[378012557,1754668232815,-401.40193467,0.00018396,2]
[378012558,1754668232825,-401.33617176,0.00018396,2]
[378012559,1754668232835,-839.65,0.00018396,2]
[378012560,1754668232844,-400.0,0.00018396,2]
[378012561,1754668232853,-400.0,0.00018396,2]
[378012562,1754668232863,-400.0,0.00018396,2]
[378012563,1754668232872,-402.68937823,0.00018396,2]
[378012564,1754668232882,-400.0,0.00018396,2]
[378012565,1754668232891,-5000.0,0.00018397,2]
[378012566,1754668232900,-514.74241561,0.00018397,2]
[378012567,1754668232909,-400.0,0.00018397,2]
[378012568,1754668232919,-400.0,0.00018397,2]
[378012569,1754668232928,-402.73454839,0.00018397,2]
[378012570,1754668232938,-402.61025304,0.00018397,2]
[378012571,1754668232947,-401.48139989,0.00018397,2]
[378012572,1754668232956,-400.0,0.00018397,2]
[378012573,1754668232966,-400.0,0.00018397,2]
[378012574,1754668232976,-400.0,0.00018397,2]
[378012575,1754668232985,-401.18219506,0.00018397,2]
[378012576,1754668232995,-400.0,0.00018397,2]
[378012577,1754668233004,-400.0,0.00018397,2]
[378012578,1754668233013,-402.15405793,0.00018397,2]